[Event "Mitropa Cup Open 2024"]
[Site "Apolda"]
[Date "2024.02.15"]
[Round "1.5"]
[White "Sahidi, Samir"]
[Black "Krstulovic, Alex"]
[Result "1-0"]
[ECO "B12"]
[WhiteElo "2478"]
[BlackElo "2414"]
[Annotator "TA"]
[PlyCount "81"]
[EventDate "2024.02.15"]
[EventType "team-tourn"]
[EventCountry "GER"]
[SourceTitle "playchess.com"]
[Source "ChessBase"]
[SourceQuality "1"]
[WhiteTeam "Slovakia"]
[BlackTeam "Hungary"]
[WhiteTeamCountry "SVK"]
[BlackTeamCountry "HUN"]
[TimeControl "40/5400+30:1800+30"]

{[%evp 9,81,18,15,14,16,26,22,0,0,0,31,19,32,26,24,16,17,17,27,31,41,45,35,17,31,32,92,107,128,125,139,115,134,137,137,119,160,165,156,152,484,244,248,252,246,232,328,0,290,274,344,335,341,339,356,356,324,324,308,240,231,225,227,182,209,200,278,278,260,235,1193,217,1183,1172]} 1. e4 {[%emt 0:00:07]} c6 {[%emt 0:00:06]} 2. d4 {[%emt 0:00:17]} d5 {[%emt 0:00:07]} 3. e5 {[%emt 0:00:26]} c5 {[%emt 0:00:06]} 4. dxc5 {[%emt 0:00:19]} e6 {[%emt 0:00:06]} 5. Nf3 {[%emt 0:00:24]} Bxc5 {[%emt 0:00:06]} 6. Bd3 {[%emt 0:00:34]} Ne7 {[%emt 0:01:12]} 7. O-O {[%emt 0:00:23]} Ng6 {[%emt 0:00:57]} 8. a3 {[%emt 0:01:33] The position is equal.} Qc7 {[%emt 0:02:48]} 9. Re1 {[%emt 0:03:46]} Nd7 {[%emt 0:03:18][%cal Bb8d7,Bd7c5,Bc5d3][%mdl 32]} 10. Qe2 {[%emt 0:04:40]} Be7 {[%emt 0:07:53]} 11. g3 {[%emt 0:04:21]} Nc5 {[%emt 0:03:45]} 12. h4 {[%emt 0:02:54]} Nxd3 {[%emt 0:00:08]} 13. cxd3 {[%emt 0:01:37]} h5 {[%emt 0:10:15]} 14. Nc3 {[%emt 0:05:51]} Bd7 {[%emt 0:00:46] Wards off Nb5} 15. Bd2 {[%emt 0:03:39]} Rc8 {[%emt 0:07:20]} 16. Rac1 {[%emt 0:01:32][%cal Oc3d5]} Qb8 {[%emt 0:02:15]} 17. Nd4 {[%emt 0:09:37][%cal Bf3d4,Bd4b5,Bb5d6,Bd6b7][%mdl 32]} Bc5 {[%emt 0:04:33]} (17... a6 $14) 18. Ncb5 $16 {[%emt 0:04:16]} O-O {[%emt 0:35:54]} 19. Qxh5 {[%emt 0:05:57][%cal Od4f3] White has more active pieces.} Bxb5 {[%emt 0:01:58]} 20. Nxb5 {[%emt 0:01:18]} a6 {[%emt 0:02:18]} 21. d4 {[%emt 0:08:22]} Bb6 {[%emt 0:00:57]} 22. Rxc8 {[%emt 0:00:20]} Qxc8 {[%emt 0:00:36]} 23. Nd6 {[%emt 0:00:15]} Qc2 {[%emt 0:02:56]} 24. Bc3 {[%emt 0:00:33]} f6 $2 {[%emt 0:02:23]} (24... Ne7 $16 25. Qg4 (25. Nxb7 Nc6 $18) 25... f5) 25. exf6 {[%emt 0:03:13]} (25. Nxb7 $2 fxe5 26. Qe2 Qxe2 27. Rxe2 exd4 $17) (25. Qg4 $142) 25... Rxf6 $18 {[%emt 0:00:15]} 26. Qe2 {[%emt 0:00:37]} (26. Nxb7 Rxf2 (26... Qxf2+ 27. Kh1 Qxg3 28. Qg5 Qh3+ 29. Kg1 Nf4 30. Kf2 Nd3+ 31. Kg1 Nxe1 32. Qxg7+ Kxg7 33. Bxe1 Rf1#) (26... Qxf2+ 27. Kh1 Qxg3 28. Qg5 Qh3+ 29. Kg1 Nxh4 30. Nd6 Nf3+ 31. Kf2 Nxg5+ 32. Ke2 Ne4 33. Nxe4 dxe4 34. Rg1 Qd3+ 35. Ke1 Bc7 36. Bd2 e3 37. Bb4)) 26... Qa4 {[%emt 0:02:50] aiming for ...Qc6.} 27. Nxb7 {[%emt 0:06:57] Nc5 would now be deadly.} e5 {[%emt 0:07:08]} (27... Qc6 $142) 28. Qg4 $2 {[%emt 0:10:25]} (28. dxe5 $2 Rxf2 (28... Bxf2+ 29. Kh1 $19) 29. Qxf2 Bxf2+ 30. Kxf2 d4 $19) ({White should play} 28. Nc5 $18 Bxc5 29. dxc5) 28... exd4 $2 {[%emt 0:00:53][%mdl 8192] [#]} (28... Qc2 $11 {and Black stays safe.} 29. Re2 (29. dxe5 Rxf2 30. Qc8+ Rf8+ 31. Kh1 Rxc8 32. e6 Nxh4 33. gxh4 Rc4) 29... Qb1+ (29... Qd1+ 30. Kg2 $11) 30. Re1 Qc2) 29. h5 $1 {[%emt 0:00:52]} Qc6 {[%emt 0:00:39]} 30. Bxd4 {[%emt 0:01:12]} Bxd4 {[%emt 0:00:30]} 31. Qxd4 {[%emt 0:00:33]} Qxb7 {[%emt 0:00:28]} 32. hxg6 {[%emt 0:00:45]} Rxg6 {[%emt 0:00:01][%mdl 4096] Endgame. KQR-KQR} 33. Re8+ {[%emt 0:06:09]} Kh7 {[%emt 0:00:53]} 34. Re5 {[%emt 0:03:12]} Rd6 {[%emt 0:00:12]} 35. Qd3+ {[%emt 0:01:26]} Kg8 {[%emt 0:00:29]} 36. Re8+ {[%emt 0:03:31]} Kf7 {[%emt 0:00:03]} 37. Qe2 {[%emt 0:01:12] [#] Threatens to win with Qh5+.} d4 {[%emt 0:01:19]} 38. Qh5+ {[%emt 0:01:34]} Rg6 {[%emt 0:00:01]} 39. Qh8 {[%emt 0:02:57][%csl Ge8][%cal Rh8f8]} Rb6 $2 {[%emt 0:00:21]} (39... Rc6 40. Qh5+ Rg6) 40. Qf8+ {[%emt 0:00:38]} Kg6 {[%emt 0:00:01]} 41. Re7 {[%emt 0:30:26] Weighted Error Value: White=0.30/Black=0.45.  Loses game:     	---       	Black=2      Missed win:     	White=1     	---        Mistake:       	White=1     	Black=3      Inaccurate:     	---       	Black=4      OK:         	White=14    	Black=14     Best:        	White=3     	Black=2      Strong:       	White=1     	---} 1-0

[Event "Mitropa Cup Open 2024"]
[Site "Apolda"]
[Date "2024.02.15"]
[Round "1.6"]
[White "Juhasz, Agoston"]
[Black "Haring, Filip"]
[Result "0-1"]
[ECO "B12"]
[WhiteElo "2410"]
[BlackElo "2432"]
[Annotator "TA"]
[PlyCount "66"]
[EventDate "2024.02.15"]
[EventType "team-tourn"]
[EventCountry "GER"]
[SourceTitle "playchess.com"]
[Source "ChessBase"]
[SourceQuality "1"]
[WhiteTeam "Hungary"]
[BlackTeam "Slovakia"]
[WhiteTeamCountry "HUN"]
[BlackTeamCountry "SVK"]
[TimeControl "40/5400+30:1800+30"]

{[%evp 10,66,29,24,42,35,33,28,30,0,3,5,18,9,7,0,11,1,9,7,0,0,0,0,22,17,11,17,31,0,27,0,0,-77,0,-110,-110,-93,-101,-150,-150,-147,-147,-183,-178,-164,-152,-241,-202,-437,-439,-438,-363,-502,-494,-29991,-29992,-29993,-29994]} 1. e4 {[%emt 0:00:10]} c6 {[%emt 0:00:09]} 2. d4 {[%emt 0:00:13]} d5 {[%emt 0:00:07]} 3. e5 {[%emt 0:00:29]} Bf5 {[%emt 0:00:23]} 4. Nf3 {[%emt 0:00:33]} e6 {[%emt 0:00:14]} 5. Be2 {[%emt 0:00:07]} Nd7 {[%emt 0:00:20]} 6. O-O {[%emt 0:00:14]} a5 {[%emt 0:00:18]} 7. a4 {[%emt 0:01:07]} f6 {[%emt 0:00:51]} 8. exf6 {[%emt 0:01:29]} Ngxf6 {[%emt 0:00:52] White has an edge.} 9. Nh4 {[%emt 0:00:59]} Bd6 {[%emt 0:04:21]} 10. Nxf5 {[%emt 0:01:18]} exf5 {[%emt 0:00:13]} 11. Bd3 {[%emt 0:00:29]} g6 {[%emt 0:02:53]} 12. c4 {[%emt 0:01:38]} O-O {[%emt 0:05:04] Active counter play!} 13. Nc3 {[%emt 0:00:55]} dxc4 {[%emt 0:09:55]} 14. Bxc4+ {[%emt 0:00:42]} Kg7 {[%emt 0:00:07]} 15. g3 {[%emt 0:05:23]} Nb6 {[%emt 0:02:58]} 16. Be6 {[%emt 0:04:29]} Qc7 {[%emt 0:04:31]} 17. Bd2 {[%emt 0:10:34]} Rae8 {[%emt 0:02:17]} 18. Re1 {[%emt 0:01:24]} f4 {[%emt 0:14:31][%cal Rf4g3] And now ...fxg3 would win.} 19. Kg2 {[%emt 0:24:49]} h5 {[%emt 0:00:10]} 20. Rc1 {[%emt 0:04:01][%cal Oc3b5]} Qd8 {[%emt 0:03:52]} 21. gxf4 {[%emt 0:07:02] [#]} (21. Qb3 $11) 21... Nfd5 {[%emt 0:08:18]} ({Black should try} 21... Nh7 $1 $17 22. Bb3 Rxe1 23. Qxe1 Bxf4 24. Bxf4 Rxf4 25. Qe5+ Qf6 26. Qxf6+ Nxf6) 22. Nxd5 {[%emt 0:03:21]} (22. Bxd5 $1 $11 {was the only way to keep the balance.} Nxd5 23. Rxe8 Qxe8 24. Nxd5 cxd5 25. Qe1 (25. Bxa5 Qe4+ 26. Qf3 Qxf3+ 27. Kxf3 Bxf4 $19) (25. Qf3 Rf5 $11)) 22... Nxd5 $17 {[%emt 0:01:10]} 23. Bxd5 {[%emt 0:01:30] [#] Rxe8 is the strong threat.} Rxe1 {[%emt 0:03:08]} 24. Qxe1 {[%emt 0:00:58]} (24. Bxe1 $142 Bxf4 25. Rc5 (25. Bf3 $2 Qg5+ 26. Kf1 Bxc1 $19)) 24... Bxf4 {[%emt 0:00:42]} 25. Bxf4 {[%emt 0:15:21]} (25. Bxa5 $2 {loses.} Qxd5+ 26. Kg1 Qg5+ (26... Bxc1 $2 27. b3 $19) 27. Kf1 Bxc1 $19) 25... Qxd5+ {[%emt 0:00:06]} 26. f3 {[%emt 0:01:04]} Rxf4 $19 {[%emt 0:00:05][%mdl 4096] Endgame. KQR-KQR} 27. Qe7+ {[%emt 0:00:47]} Kh6 {[%emt 0:01:32]} 28. Rc3 {[%emt 0:01:27]} (28. Rf1 $17 {was called for.}) 28... Qxd4 {[%emt 0:03:54]} 29. h4 $2 {[%emt 0:03:26]} (29. Qe8 {was necessary.}) 29... Rxh4 {[%emt 0:05:25] aiming for ...Qd2+.} (29... Qxa4 30. Kg3 Rf5 31. Qe3+ Kg7 32. Rd3 $11) 30. Qf8+ {[%emt 0:08:45]} Qg7 {[%emt 0:00:12]} 31. Qd8 {[%emt 0:00:41]} Rd4 {[%emt 0:00:46]} 32. Qxa5 {[%emt 0:00:33]} (32. Qe8 $19 Qf6 (32... Rxa4 $2 33. Qe3+ Kh7 34. Rc2 $19) 33. Re3) 32... Rd2+ {[%emt 0:00:16]} 33. Kf1 {[%emt 0:00:21]} Qe7 {[%emt 0:00:46] Weighted Error Value: White=0.57/Black=0.07 (flawless) .  Mistake:       	White=6     	Black=1      Inaccurate:     	White=3     	Black=1      OK:         	White=7     	Black=11     Best:        	White=1     	Black=6} 0-1

[Event "Mitropa Cup Open 2024"]
[Site "Apolda"]
[Date "2024.02.15"]
[Round "1.7"]
[White "Turcan, Richard"]
[Black "Pasztor, Balazs"]
[Result "0-1"]
[ECO "C65"]
[WhiteElo "2393"]
[BlackElo "2395"]
[Annotator "TA"]
[PlyCount "128"]
[EventDate "2024.02.15"]
[EventType "team-tourn"]
[EventCountry "GER"]
[SourceTitle "playchess.com"]
[Source "ChessBase"]
[SourceQuality "1"]
[WhiteTeam "Slovakia"]
[BlackTeam "Hungary"]
[WhiteTeamCountry "SVK"]
[BlackTeamCountry "HUN"]
[TimeControl "40/5400+30:1800+30"]

{[%evp 9,128,14,15,10,12,22,30,11,23,27,22,7,52,60,53,43,66,47,49,43,32,34,31,8,17,11,18,10,13,-7,-7,7,-10,-33,-20,-22,-24,-41,-35,-43,-8,-29,0,-18,0,0,0,-66,-63,-68,-67,-66,-65,-65,-61,-65,-55,-143,-94,-179,-173,-261,-253,-195,0,0,0,-203,-168,-188,-183,-181,-183,-173,-189,-189,-189,-189,-189,-177,-171,-194,-163,-258,-258,-258,-163,-564,-412,-577,-560,-563,-493,-449,-59,-74,-83,-1266,-1085,-1254,-588,-1506,-1446,-1416,-1379,-1546,-1436,-1297,-1002,-873,-580,-4930,-4552,-5103,-8125,-29974,-29975,-29975,-29976,-10568,-9439]} 1. e4 {[%emt 0:00:03]} e5 {[%emt 0:00:05]} 2. Nf3 {[%emt 0:00:12]} Nc6 {[%emt 0:00:10]} 3. Bb5 {[%emt 0:00:22]} Nf6 {[%emt 0:00:15]} 4. d3 {[%emt 0:00:18]} Bc5 {[%emt 0:00:14]} 5. c3 {[%emt 0:01:26]} O-O {[%emt 0:00:15]} 6. O-O {[%emt 0:01:58]} d5 {[%emt 0:01:35]} 7. exd5 {[%emt 0:01:11]} Qxd5 {[%emt 0:01:59][%cal Oc5f2]} 8. Bc4 {[%emt 0:01:31] White has an edge.} Qd6 {[%emt 0:08:03]} 9. b4 {[%emt 0:05:32]} Bb6 {[%emt 0:02:22]} 10. Nbd2 {[%emt 0:03:33]} a5 {[%emt 0:12:17]} 11. b5 {[%emt 0:02:09]} Ne7 {[%emt 0:01:39]} 12. a4 {[%emt 0:02:31]} Bf5 {[%emt 0:12:29][%cal Oe7d5]} 13. Nb3 {[%emt 0:20:29]} Nd7 {[%emt 0:14:05]} 14. Re1 {[%emt 0:04:35] aiming for Ba3.} Rfe8 $1 {[%emt 0:09:01]} 15. Ng5 {[%emt 0:17:15]} Bg6 {[%emt 0:02:02]} 16. Qf3 {[%emt 0:03:07]} Qf6 {[%emt 0:03:54]} 17. Qxf6 {[%emt 0:03:11]} Nxf6 {[%emt 0:03:30]} 18. Ne4 {[%emt 0:10:15]} ({Much worse is} 18. Rxe5 Bxf2+ 19. Kh1 Nf5 $15) 18... Rad8 {[%emt 0:02:54]} 19. Bb2 {[%emt 0:05:01]} Nf5 {[%emt 0:09:10]} 20. Nxf6+ {[%emt 0:01:20]} gxf6 {[%emt 0:00:02]} 21. Ba3 {[%emt 0:02:25]} Nd6 {[%emt 0:01:05]} 22. Bxd6 {[%emt 0:00:36]} Rxd6 {[%emt 0:01:55]} 23. Rad1 {[%emt 0:03:04]} Kf8 {[%emt 0:02:26]} 24. Kf1 {[%emt 0:01:40]} Re7 {[%emt 0:01:28]} 25. f3 {[%emt 0:02:22]} f5 {[%emt 0:02:02]} 26. d4 {[%emt 0:02:39]} f6 {[%emt 0:02:44]} 27. Nc5 {[%emt 0:01:14]} c6 {[%emt 0:01:18]} 28. bxc6 {[%emt 0:01:31]} (28. dxe5 $11 Rxd1 29. Rxd1 Bxc5 30. exf6) 28... Bxc5 $1 $15 {[%emt 0:01:36]} 29. dxc5 {[%emt 0:01:04]} Rxc6 {[%emt 0:00:01]} 30. Rd8+ {[%emt 0:01:44]} Kg7 {[%emt 0:00:56]} 31. Bd5 $1 {[%emt 0:01:09]} Rxc5 {[%emt 0:00:12]} 32. c4 {[%emt 0:00:05]} f4 {[%emt 0:01:34]} 33. Rg8+ {[%emt 0:00:51]} Kh6 {[%emt 0:00:06]} 34. Rd1 {[%emt 0:00:04] Against Bd3+} (34. Ke2 $17 {was called for.}) 34... Bc2 $19 {[%emt 0:00:37][%csl LRa4,LRd1]} 35. Rc1 {[%emt 0:00:33]} (35. Rd2 {was necessary.} Bxa4 36. Rf8) 35... Bxa4 {[%emt 0:00:31]} 36. Rf8 {[%emt 0:00:39]} Kg7 {[%emt 0:00:22]} 37. Rg8+ {[%emt 0:00:08]} Kh6 {[%emt 0:00:04]} 38. Rf8 {[%emt 0:00:03]} Bc6 {[%emt 0:01:26]} 39. Rxf6+ {[%emt 0:01:35]} Kg5 {[%emt 0:02:16]} 40. Rd6 {[%emt 0:00:28]} Bxd5 {[%emt 0:01:03]} 41. Rxd5 {[%emt 0:30:13]} Rxd5 {[%emt 0:05:34]} 42. cxd5 {[%emt 0:00:00][%mdl 4096] Endgame. KR-KR} Rd7 {[%emt 0:01:56]} 43. Rb1 {[%emt 0:00:00]} Rxd5 {[%emt 0:07:02]} 44. Rxb7 {[%emt 0:00:00]} h5 {[%emt 0:01:16]} 45. Ke2 {[%emt 0:00:00]} h4 {[%emt 0:04:40]} 46. Rg7+ {[%emt 0:00:00]} (46. Ra7 $142) 46... Kf5 $1 {[%emt 0:00:57]} 47. Rh7 {[%emt 0:00:00]} Rb5 {[%emt 0:04:36] White must now prevent ...Rb2+.} 48. Kd3 $2 {[%emt 0:00:00]} (48. Ra7 {is a better chance.}) 48... Rb2 {[%emt 0:00:46]} 49. Rh5+ {[%emt 0:00:00]} (49. Rxh4 $142 Rxg2 50. Rh5+ Ke6 51. Rh6+ Kd5 52. Ra6) 49... Ke6 {[%emt 0:00:53]} 50. Rxh4 {[%emt 0:00:00]} Rxg2 {[%emt 0:00:15]} 51. Rh8 {[%emt 0:00:00]} a4 $2 {[%emt 0:03:31]} (51... Rf2 $19 52. Re8+ Kf6) 52. Re8+ $1 $15 {[%emt 0:03:15]} Kd5 {[%emt 0:02:10] Black is more active.} 53. h4 {[%emt 0:00:05][%mdl 8192] [#] Now White is beyond hope.} (53. Rd8+ $17 Kc5 54. Rc8+ Kb4 55. Rb8+ Ka3 56. h4) 53... Rf2 $1 $19 {[%emt 0:01:23]} 54. Rd8+ {[%emt 0:00:04] [#]} Ke6 $1 {[%emt 0:00:18]} 55. Re8+ {[%emt 0:00:10]} Kf6 {[%emt 0:00:13]} 56. Ke4 {[%emt 0:01:11]} Re2+ {[%emt 0:00:07]} 57. Kd5 {[%emt 0:00:06]} Rd2+ {[%emt 0:00:07]} 58. Kc4 {[%emt 0:00:10]} a3 {[%emt 0:00:22] Hoping for ...a2.} 59. Ra8 {[%emt 0:01:32]} a2 {[%emt 0:00:38][%cal Oe5e4] ...e4! would now be deadly.} 60. Ra6+ {[%emt 0:00:09]} Kf5 {[%emt 0:00:17]} 61. h5 {[%emt 0:00:28]} Rf2 {[%emt 0:01:11]} 62. h6 {[%emt 0:00:20]} Rxf3 {[%emt 0:00:20]} 63. Rxa2 {[%emt 0:00:09]} Rh3 {[%emt 0:00:11]} 64. Ra6 {[%emt 0:00:11]} Ke4 {[%emt 0:00:35] Weighted Error Value: White=0.65/Black=0.21 (precise) .  Loses game:     	White=1     	---        Missed win:     	---       	Black=1      Mistake:       	White=6     	---        Inaccurate:     	White=1     	Black=5      OK:         	White=21    	Black=19     Best:        	White=3     	Black=4      Strong:       	White=2     	Black=4} 0-1

[Event "Mitropa Cup Open 2024"]
[Site "Apolda"]
[Date "2024.02.15"]
[Round "1.8"]
[White "Karacsonyi, Gellert"]
[Black "Bochnicka, Vladimir"]
[Result "1/2-1/2"]
[ECO "B30"]
[WhiteElo "2398"]
[BlackElo "2398"]
[Annotator "RC"]
[PlyCount "61"]
[EventDate "2024.02.15"]
[EventType "team-tourn"]
[EventCountry "GER"]
[SourceTitle "playchess.com"]
[Source "ChessBase"]
[SourceQuality "1"]
[WhiteTeam "Hungary"]
[BlackTeam "Slovakia"]
[WhiteTeamCountry "HUN"]
[BlackTeamCountry "SVK"]
[TimeControl "40/5400+30:1800+30"]

1. e4 {[%emt 0:00:03]} c5 {[%emt 0:00:12]} 2. Nf3 {[%emt 0:00:09]} Nc6 {[%emt 0:00:09]} 3. Bb5 {[%emt 0:00:14]} e6 {[%emt 0:00:20]} 4. O-O {[%emt 0:00:24]} Nge7 {[%emt 0:00:17]} 5. d4 {[%emt 0:00:22]} cxd4 {[%emt 0:00:31]} 6. Nxd4 {[%emt 0:00:09]} Ng6 {[%emt 0:00:49]} 7. Be3 {[%emt 0:00:47]} Be7 {[%emt 0:01:00]} 8. c3 {[%emt 0:00:22]} O-O {[%emt 0:00:50]} 9. Nd2 {[%emt 0:01:02]} a6 {[%emt 0:01:21]} 10. Be2 {[%emt 0:00:32]} b5 {[%emt 0:02:39]} 11. Nxc6 {[%emt 0:00:55]} dxc6 {[%emt 0:00:09]} 12. a4 {[%emt 0:00:20]} Rb8 {[%emt 0:12:15]} 13. g3 {[%emt 0:03:02]} Qc7 {[%emt 0:07:11]} 14. axb5 {[%emt 0:00:54]} cxb5 {[%emt 0:00:41]} 15. Nb3 {[%emt 0:10:24]} Bb7 {[%emt 0:07:16]} 16. f3 {[%emt 0:02:04]} Ne5 {[%emt 0:10:32]} 17. Na5 {[%emt 0:07:19]} Rfd8 {[%emt 0:04:41]} 18. Qc1 {[%emt 0:05:47]} Ba8 {[%emt 0:00:24]} 19. Bd4 {[%emt 0:02:34]} Nd7 {[%emt 0:22:02]} 20. Nb3 {[%emt 0:04:29]} Bb7 {[%emt 0:01:20]} 21. Rd1 {[%emt 0:28:53]} e5 {[%emt 0:02:54]} 22. Ba7 {[%emt 0:01:44]} Ra8 {[%emt 0:00:20]} 23. Bf2 {[%emt 0:01:24]} Nc5 {[%emt 0:02:15]} 24. Qc2 {[%emt 0:07:23]} Nxb3 {[%emt 0:02:43]} 25. Qxb3 {[%emt 0:00:02]} Bc5 {[%emt 0:00:49]} 26. Rxd8+ {[%emt 0:03:27]} Rxd8 {[%emt 0:00:17]} 27. Rd1 {[%emt 0:00:10]} Bxf2+ {[%emt 0:00:22]} 28. Kxf2 {[%emt 0:00:07]} h6 {[%emt 0:04:49]} 29. Ke1 {[%emt 0:06:34]} Bc8 {[%emt 0:05:13]} 30. Rxd8+ {[%emt 0:06:41]} Qxd8 {[%emt 0:00:06]} 31. Qd1 {[%emt 0:04:42]} 1/2-1/2

[Event "Mitropa Cup Open 2024"]
[Site "Apolda"]
[Date "2024.02.15"]
[Round "1.9"]
[White "Plenca, Jadranko"]
[Black "Georgiadis, Nico"]
[Result "1/2-1/2"]
[ECO "C65"]
[WhiteElo "2429"]
[BlackElo "2547"]
[Annotator "TA"]
[PlyCount "89"]
[EventDate "2024.02.15"]
[EventType "team-tourn"]
[EventCountry "GER"]
[SourceTitle "playchess.com"]
[Source "ChessBase"]
[SourceQuality "1"]
[WhiteTeam "Croatia"]
[BlackTeam "Switzerland"]
[WhiteTeamCountry "CRO"]
[BlackTeamCountry "SUI"]
[TimeControl "40/5400+30:1800+30"]

{[%evp 11,89,0,13,0,14,-4,12,-7,-7,-12,-4,-25,0,-8,0,-7,6,-7,-4,-6,0,-8,-8,-14,-14,-6,-9,-5,-6,-19,-14,-13,-3,-8,0,-6,0,0,0,-6,0,0,0,0,0,0,0,0,0,0,0,0,272,6,35,35,45,35,42,42,42,24,37,0,0,0,0,0,1,10,0,0,7,0,0,0,0,0,0,0]} 1. e4 {[%emt 0:00:05]} e5 {[%emt 0:00:07]} 2. Nf3 {[%emt 0:00:47]} Nc6 {[%emt 0:00:06]} 3. Bb5 {[%emt 0:01:41]} Nf6 {[%emt 0:00:09]} 4. d3 {[%emt 0:02:09]} Bc5 {[%emt 0:00:07][%cal Bf8c5,Bc5d4,Bd4b6][%mdl 32]} 5. O-O {[%emt 0:03:53]} Nd4 {[%emt 0:02:03]} 6. Nxd4 {[%emt 0:05:42]} Bxd4 {[%emt 0:00:06]} 7. c3 {[%emt 0:01:04]} Bb6 {[%emt 0:00:08]} 8. Ba4 {[%emt 0:08:55]} O-O {[%emt 0:06:05]} 9. Qf3 {[%emt 0:07:11]} c6 {[%emt 0:14:02]} 10. Bb3 {[%emt 0:05:03]} d6 {[%emt 0:04:50]} 11. Be3 {[%emt 0:06:57]} h6 {[%emt 0:16:57]} 12. Bxb6 {[%emt 0:09:49]} axb6 {[%emt 0:08:30]} 13. Nd2 {[%emt 0:06:59][%cal Bb1d2,Bd2b3,Bb3d4][%mdl 32]} Be6 {[%emt 0:07:00]} 14. Rfe1 {[%emt 0:07:25]} b5 {[%emt 0:04:36]} 15. a3 {[%emt 0:03:56]} Bxb3 {[%emt 0:01:26]} 16. Nxb3 {[%emt 0:00:05]} Re8 {[%emt 0:01:06]} 17. d4 {[%emt 0:03:17]} Qe7 {[%emt 0:02:00]} 18. Rad1 {[%emt 0:06:25]} exd4 {[%emt 0:15:00]} 19. Nxd4 {[%emt 0:00:14]} Qe5 {[%emt 0:02:42][%cal Rf6e4]} 20. Qd3 {[%emt 0:07:36]} d5 {[%emt 0:02:00][%cal Rd5e4]} (20... Nxe4 $2 {too greedy.} 21. f3 Nc5 22. Rxe5 $18) 21. Nf3 {[%emt 0:01:30]} Qh5 {[%emt 0:01:04]} 22. exd5 {[%emt 0:00:37]} Nxd5 {[%emt 0:00:10]} 23. Re4 {[%emt 0:05:11]} Nb6 {[%emt 0:05:17]} 24. Rde1 {[%emt 0:01:48]} Rxe4 {[%emt 0:00:51]} 25. Rxe4 {[%emt 0:00:14]} Qc5 {[%emt 0:01:59]} 26. h3 {[%emt 0:01:23]} Qf8 {[%emt 0:01:55]} 27. Qe2 {[%emt 0:01:55]} Rd8 {[%emt 0:00:42]} 28. Nd4 {[%emt 0:00:29]} Qd6 {[%emt 0:00:28]} 29. Re7 {[%emt 0:00:53]} Rd7 {[%emt 0:00:39]} 30. Re8+ {[%emt 0:00:16]} Kh7 {[%emt 0:00:05]} 31. h4 {[%emt 0:00:49]} Nd5 $2 {[%emt 0:02:17][%mdl 8192] [#]} (31... Rd8 $11 {and Black has nothing to worry.}) 32. h5 $2 {[%emt 0:00:23]} ({White must play} 32. Ne6 $1 $18 {[%cal Re6f8] Nf8+ would now be deadly.} fxe6 33. Qe4+ g6 34. Rxe6 Qxe6 (34... Qf8 $2 35. Qxg6+ Kh8 36. Re8 $18) 35. Qxe6) 32... Nf6 {[%emt 0:00:43]} 33. Qc2+ {[%emt 0:00:48]} g6 {[%emt 0:00:04]} 34. hxg6+ {[%emt 0:01:11]} fxg6 {[%emt 0:00:06]} 35. Re6 {[%emt 0:00:11]} Qf8 {[%emt 0:00:37]} 36. Qe2 {[%emt 0:00:26]} Qf7 {[%emt 0:00:42]} 37. Qf3 {[%emt 0:00:54]} Nd5 {[%emt 0:00:43] The position is equal.} 38. Qe4 {[%emt 0:00:27]} Re7 {[%emt 0:01:05]} 39. Qe5 {[%emt 0:00:40]} Qg7 {[%emt 0:00:43]} 40. Qd6 {[%emt 0:00:27]} Rxe6 {[%emt 0:00:38]} 41. Nxe6 {[%emt 0:30:10]} Qe7 {[%emt 0:04:09]} 42. Qe5 {[%emt 0:00:00]} Kg8 {[%emt 0:03:33] [#] And now ...Kf7 would win.} 43. Qb8+ {[%emt 0:00:00]} Kh7 {[%emt 0:00:08]} 44. Qe5 {[%emt 0:00:00]} Kg8 {[%emt 0:00:06] Threatens to win with ...Kf7.} 45. Qb8+ {[%emt 0:00:00] Weighted Error Value: White=0.13 (very precise) /Black=0.16 (very precise) .  Loses game:     	---       	Black=1      Missed win:     	White=1     	---        Inaccurate:     	White=1     	Black=1      OK:         	White=8     	Black=17     Best:        	White=2     	Black=2} 1/2-1/2